bitfinex/quotes_ETHUSD_20260310
["timestamp","ask_amount","ask_price","bid_price","bid_amount"]
[1773132809467,1.73583195,2059.7,2059.5,0.0011]
[1773132809790,0.52206222,2059.7,2059.5,0.0011]
[1773132810490,1.73583676,2059.7,2059.5,0.0011]
[1773132810841,2.86254294,2059.6,2059.5,0.0011]
[1773132812559,2.85986637,2059.6,2059.5,0.0011]
[1773132812762,1.73583299,2059.7,2059.5,0.0011]
[1773132813074,0.52206222,2059.7,2059.5,0.0011]
[1773132813252,2.85973629,2059.6,2059.5,0.0011]
[1773132813974,1.85307445,2059.6,2059.5,0.0011]
[1773132814140,0.001,2059.9,2059.5,0.0011]
[1773132814653,0.54985963,2059.8,2059.5,0.0011]
[1773132816072,0.54985963,2059.6,2059.5,0.0011]
[1773132817149,0.54985963,2059.6,2059.3,0.0011]
[1773132817362,0.54985963,2059.6,2059.0,0.0011]
[1773132817576,0.54985963,2059.6,2059.1,0.0011]
[1773132817748,0.54985963,2059.6,2059.0,0.0022]
[1773132818246,0.54985963,2059.4,2059.0,0.0022]
[1773132818446,0.54985963,2059.4,2059.0,0.0011]
[1773132819779,0.54985963,2059.4,2059.1,0.0011]
[1773132820185,0.54985963,2059.3,2059.1,0.0011]
[1773132821347,0.54985963,2059.3,2059.0,0.0011]
[1773132821547,0.54985963,2059.3,2059.0,0.0022]
[1773132822208,1.21395729,2059.4,2059.0,0.0011]
[1773132822413,1.76377807,2059.5,2059.1,0.0011]
[1773132822614,0.54985963,2059.4,2059.1,0.0011]
[1773132822818,0.54985963,2059.4,2059.2,0.0011]
[1773132825037,0.001,2060.1,2059.3,2.3584132]
[1773132825188,0.54985963,2060.0,2059.3,1.29]
[1773132825812,0.54985963,2060.0,2059.2,0.0011]
[1773132826350,0.54985963,2060.0,2059.2,0.06171824]
[1773132826549,0.54985963,2059.8,2059.2,1.27575728]
[1773132826753,1.21363877,2060.0,2059.3,0.06061824]
[1773132826949,0.54985963,2059.9,2059.3,0.06061824]
[1773132827761,0.54985963,2059.9,2059.2,1.21513904]
[1773132827915,0.54985963,2059.9,2059.2,1.21515524]
[1773132828466,1.21329774,2060.5,2059.6,1.21382792]
[1773132828760,0.52904738,2060.2,2059.6,1.21382792]
[1773132828961,0.52904738,2060.2,2059.5,1.75817825]
[1773132829134,0.0009,2060.1,2059.5,1.75817825]
[1773132829335,0.0009,2060.0,2059.5,1.75817825]
[1773132829581,0.52904738,2060.2,2059.6,0.54433559]
[1773132829747,0.0009,2060.1,2059.6,0.54433559]
[1773132829942,0.52994738,2060.4,2059.6,0.54433559]
[1773132830488,0.52994738,2060.4,2059.4,1.75826782]
[1773132830635,0.52904738,2060.2,2059.5,0.53957538]
[1773132831151,0.56617102,2060.1,2059.5,0.53957538]
[1773132832074,0.56617102,2060.1,2059.4,1.21394447]
[1773132833569,1.21359223,2060.0,2059.3,1.75353338]
[1773132833773,0.56527102,2059.9,2059.3,1.75353338]
[1773132834072,0.56527102,2059.9,2059.3,0.53957538]
[1773132834300,0.56527102,2059.9,2059.3,1.75357819]
[1773132834606,1.21359223,2060.0,2059.2,0.0011]
[1773132834607,0.56617102,2059.8,2059.2,0.0011]
[1773132834899,0.56617102,2059.8,2059.6,0.0011]
[1773132835599,1.77991913,2059.8,2059.6,0.0011]
[1773132836376,0.56527102,2059.7,2059.1,1.21520212]
[1773132836578,0.56617102,2059.7,2059.1,1.7547775]
[1773132836764,0.0009,2059.6,2059.1,1.7547775]
[1773132837274,0.0009,2059.6,2059.2,0.53957538]
[1773132837779,0.0009,2059.6,2059.3,1.75358013]
[1773132839690,0.56617102,2059.6,2059.1,0.54067538]
[1773132839995,0.56617102,2059.6,2059.1,1.21521427]
[1773132840192,0.56617102,2059.6,2059.1,0.0011]
[1773132841799,0.56527102,2059.4,2059.1,0.0011]
[1773132842602,0.56527102,2059.8,2059.1,0.54067538]
[1773132843197,0.56527102,2059.8,2059.1,0.0011]
[1773132843919,0.58458725,2059.6,2059.1,0.0011]
[1773132846115,1.7984684,2059.6,2059.1,0.0011]
[1773132846317,0.58458725,2059.5,2059.1,0.0011]
[1773132847016,0.58458725,2059.7,2059.1,0.0011]
[1773132848022,0.58458725,2059.7,2059.3,0.0011]
[1773132848253,0.001,2059.4,2059.3,0.0011]
[1773132849345,0.001,2059.9,2059.3,0.56101287]
[1773132849547,0.58558725,2059.9,2059.3,0.56101287]
[1773132850432,0.58558725,2059.9,2059.4,1.2139458]
[1773132850826,0.001,2059.9,2059.5,0.55991287]
[1773132851135,0.001,2059.9,2059.4,1.2139458]
[1773132851985,0.58558725,2059.9,2059.4,1.2139458]
[1773132852779,0.001,2059.9,2059.5,0.55991287]
[1773132853572,0.58558725,2059.9,2059.4,1.2139458]
[1773132853875,0.58558725,2059.9,2059.4,1.77385867]
[1773132854066,0.001,2059.9,2059.5,0.55991287]
[1773132854579,0.001,2059.9,2059.6,1.21382792]
[1773132854774,0.001,2059.9,2059.6,1.77374079]
[1773132855149,0.001,2059.9,2059.6,1.21382792]
[1773132855355,0.58558725,2059.9,2059.6,1.21382792]
[1773132855561,0.58558725,2059.9,2059.4,1.21390182]
[1773132855854,0.58558725,2059.9,2059.4,1.77381469]
[1773132856055,0.001,2059.9,2059.5,0.55991287]
[1773132856264,0.58458725,2060.3,2059.6,0.55991287]
[1773132856663,0.58458725,2060.2,2059.7,1.21376899]
[1773132856868,0.58458725,2060.2,2059.6,1.77372916]
[1773132857255,0.58458725,2060.2,2059.6,1.21381629]
[1773132857456,0.58458725,2060.2,2059.7,0.55991287]
[1773132857655,0.58458725,2060.1,2059.6,1.21381629]
[1773132857851,0.58458725,2060.1,2059.5,1.21388686]
[1773132858681,0.58458725,2059.9,2059.5,1.21388686]
[1773132858985,0.58458725,2059.9,2059.3,1.21505978]
[1773132860184,0.58558725,2059.7,2059.3,0.0011]
[1773132860773,0.58458725,2059.6,2059.3,0.0011]
[1773132861495,0.58458725,2059.6,2059.1,0.0011]
[1773132862789,1.79847411,2059.5,2059.1,0.0011]
[1773132863132,0.58458725,2059.5,2059.1,0.0011]
[1773132865599,0.58458725,2059.3,2059.1,0.0011]
[1773132866682,1.79848294,2059.5,2059.1,0.0011]
[1773132867371,0.58458725,2059.4,2059.1,0.0011]
[1773132868267,1.21394801,2059.4,2059.1,0.0011]
[1773132868467,0.58458725,2059.3,2059.1,0.0011]
[1773132868897,0.58458725,2059.5,2059.1,0.0011]
[1773132869802,0.58458725,2059.5,2059.1,1.21522267]
[1773132870503,0.58458725,2059.5,2059.1,1.77513554]
[1773132870673,0.58558725,2059.7,2059.1,1.77513554]
[1773132870875,0.58558725,2059.7,2059.2,0.55991287]
[1773132871606,1.7993836,2059.7,2059.2,0.55991287]
[1773132871899,0.58558725,2059.7,2059.3,1.21510475]
[1773132872509,0.58558725,2059.7,2059.3,0.0011]
[1773132873611,1.79936489,2059.7,2059.3,0.0011]
[1773132873910,0.56685305,2059.6,2059.3,0.0011]
[1773132874712,0.56685305,2059.6,2059.1,0.0011]
[1773132876208,0.56685305,2059.4,2059.1,0.0011]
[1773132878607,1.78080455,2059.4,2059.1,0.0011]
[1773132878806,0.56685305,2059.6,2059.1,0.54163927]
[1773132879112,0.001,2059.7,2059.1,0.54163927]
[1773132879829,0.56785305,2059.7,2059.2,0.54053927]
[1773132880178,0.001,2059.7,2059.2,0.54053927]
[1773132880583,6.07923813,2060.1,2059.4,0.54053927]
[1773132880584,0.56685305,2060.1,2059.4,0.54053927]
[1773132880995,1.78039883,2060.1,2059.4,0.54053927]
[1773132881196,0.56685305,2060.1,2059.4,0.54053927]
[1773132881815,1.78038951,2060.1,2059.4,0.54053927]
[1773132883017,1.78038951,2060.1,2059.5,1.75442613]
[1773132883315,1.78038951,2060.1,2059.5,1.75552613]
[1773132883616,0.001,2059.9,2059.5,1.75552613]
[1773132884186,0.001,2059.9,2059.6,0.54053927]
[1773132884516,1.78027127,2060.3,2059.6,0.54053927]
[1773132884812,0.56685305,2060.3,2059.7,1.21376899]
[1773132884996,1.2133994,2060.4,2059.8,0.54053927]
[1773132885398,1.78025245,2060.4,2059.8,0.54053927]
[1773132885702,0.56685305,2060.3,2059.8,0.54053927]
[1773132886420,0.56685305,2060.3,2059.6,0.54053927]
[1773132886718,0.56685305,2060.3,2059.5,1.2149577]
[1773132887013,0.56685305,2060.1,2059.5,0.0011]
[1773132889013,0.56685305,2059.9,2059.5,0.0011]
[1773132889934,1.76704735,2060.1,2059.5,0.51866364]
[1773132890146,0.55346694,2060.1,2059.5,0.51866364]
[1773132890790,1.76700914,2060.1,2059.5,0.51866364]
[1773132891329,1.76700914,2060.1,2059.5,1.73250105]
[1773132891330,0.55346694,2060.0,2059.5,1.73250105]
[1773132892001,0.55346694,2060.0,2059.5,0.51866364]
[1773132892200,0.55346694,2060.0,2059.5,0.0011]
[1773132892823,0.55346694,2060.0,2059.5,1.21498585]
[1773132893127,0.55346694,2060.0,2059.5,0.0011]
[1773132893934,0.55346694,2060.0,2059.5,1.73253852]
[1773132894232,1.76708832,2060.0,2059.5,1.73253852]
[1773132894445,0.55346694,2060.0,2059.5,1.73253852]
[1773132894737,1.76706082,2060.0,2059.5,1.73253852]
[1773132895528,1.76682356,2060.4,2059.6,0.51756364]
[1773132895698,0.55346694,2060.3,2059.6,0.56611675]
[1773132896114,1.76694135,2060.2,2059.7,0.0011]
[1773132896334,0.001,2059.8,2059.7,0.0011]
[1773132896706,0.001,2059.8,2059.7,0.51866364]
[1773132898123,0.001,2059.8,2059.7,1.73243263]
[1773132900708,1.76681425,2060.5,2059.8,0.51756364]
[1773132900883,1.76681425,2060.5,2059.7,1.21486899]
[1773132900884,0.55346694,2060.4,2059.7,0.0011]
[1773132901164,0.55346694,2060.2,2059.5,0.0011]
[1773132901381,0.55346694,2060.1,2059.3,0.0011]
[1773132901541,0.55346694,2060.1,2059.3,1.21510333]
[1773132901734,0.55346694,2060.4,2059.4,0.51756364]
[1773132902881,6.0719933,2060.6,2059.6,0.51756364]
[1773132902882,0.55346694,2060.3,2059.6,0.51756364]
[1773132903164,1.76678553,2060.5,2059.6,0.51756364]
[1773132903370,0.55346694,2060.4,2059.6,0.51756364]
[1773132904134,0.54850525,2060.6,2059.6,0.51756364]
[1773132904652,0.54850525,2060.6,2059.5,5.04059411]
[1773132904846,0.54850525,2060.4,2059.4,4.85554746]
[1773132905041,0.54850525,2060.4,2059.5,0.54598384]
[1773132906985,1.7618772,2060.4,2059.7,0.54465141]
[1773132907149,0.54850525,2060.4,2059.7,0.54465141]
[1773132908472,0.54850525,2060.4,2059.7,0.54575141]
[1773132908977,0.54950525,2060.4,2059.9,0.54183284]
[1773132909579,0.001,2060.4,2059.9,0.54183284]
[1773132910286,1.21435851,2060.4,2059.9,0.54183284]
[1773132910458,0.54850525,2060.3,2059.8,1.21371006]
[1773132910782,0.001,2060.4,2059.9,0.5390298]
[1773132911097,0.001,2060.4,2060.1,0.5390298]
[1773132911258,0.001,2060.4,2059.8,9.57178343]
[1773132911259,0.54950525,2060.4,2059.8,1.21368063]
[1773132911454,0.54950525,2060.4,2059.7,4.85598298]
[1773132911455,0.54950525,2060.4,2059.7,1.75246943]
[1773132911776,0.54950525,2060.4,2059.8,0.53763386]
[1773132912497,0.38409927,2060.4,2059.8,0.53763386]
[1773132912797,1.45468425,2062.4,2060.4,0.54598384]
[1773132912798,0.54950525,2061.1,2060.4,0.54598384]
[1773132913106,0.54950525,2061.1,2060.5,1.21329774]
[1773132913391,0.54850525,2061.0,2060.2,1.75943561]
[1773132913702,1.21398153,2061.1,2060.3,0.54598384]
[1773132913703,0.001,2061.1,2060.3,0.54598384]
[1773132913861,0.54850525,2061.0,2060.3,0.54598384]
[1773132914062,0.54850525,2061.0,2060.2,1.21345177]
[1773132915193,0.54850525,2060.9,2060.1,4.85397337]
[1773132915360,0.001,2061.1,2060.2,0.54598384]
[1773132915566,0.54950525,2061.1,2060.4,0.54598384]
[1773132916890,0.54950525,2061.1,2060.2,2.73484752]
[1773132917193,0.54950525,2061.1,2060.4,1.21335662]
[1773132917896,0.54950525,2061.1,2060.4,1.75934046]
[1773132919596,0.54950525,2061.1,2060.4,2.70180154]
[1773132920698,0.54950525,2061.1,2060.4,1.75934046]
[1773132920699,0.54950525,2060.9,2060.4,1.75934046]
[1773132920896,0.54950525,2060.9,2060.4,1.21334035]
[1773132921097,0.54950525,2060.9,2060.4,0.94246108]
[1773132923173,0.54950525,2060.9,2060.5,1.21329774]
[1773132924289,0.54950525,2061.1,2060.6,0.94246108]
[1773132924799,0.001,2061.1,2060.7,0.54598384]
[1773132925167,0.001,2061.1,2060.8,1.21312111]
[1773132926598,0.54950525,2061.1,2060.8,1.21312111]
[1773132926802,0.54950525,2061.1,2060.5,1.21327141]
[1773132926970,0.54950525,2061.1,2060.2,4.85376204]
[1773132927173,0.54850525,2060.9,2060.2,5.79622312]
[1773132927388,0.54850525,2060.9,2060.2,1.21347441]
[1773132928613,0.54850525,2060.9,2060.2,4.11640006]
[1773132928774,0.54850525,2060.9,2060.3,0.54598384]
[1773132929178,0.54850525,2060.9,2060.4,1.21335662]
[1773132930482,0.54850525,2060.8,2060.2,4.85384982]
[1773132930879,0.54850525,2060.8,2060.2,5.39983366]
[1773132931080,0.54850525,2060.8,2060.2,1.75945825]
[1773132932418,0.54850525,2060.8,2060.4,0.0011]
[1773132936119,0.48889539,2060.7,2060.4,0.0011]
[1773132936326,0.48889539,2060.7,2060.1,1.21459271]
[1773132938510,0.48889539,2060.6,2060.1,0.49894254]
[1773132939031,0.48889539,2060.6,2060.2,0.49784254]
[1773132939329,0.48989539,2060.9,2060.2,0.49784254]
[1773132939623,0.48889539,2060.8,2060.2,0.49784254]
[1773132940730,0.48889539,2060.8,2060.3,1.71125806]
[1773132941714,0.48889539,2060.7,2060.1,1.71244807]
[1773132941915,0.48889539,2060.7,2059.9,1.21470576]
[1773132942118,0.48889539,2060.7,2059.9,1.7125483]
[1773132942914,0.48889539,2060.7,2059.9,1.21470576]
[1773132942915,0.48889539,2060.5,2059.9,1.21470576]
[1773132944234,0.48889539,2060.5,2059.9,1.21474011]
[1773132945832,1.21335662,2060.4,2059.9,1.21473002]
[1773132946028,0.48889539,2060.3,2059.9,0.0011]
[1773132946829,0.48889539,2060.3,2060.1,0.0011]
[1773132950244,0.31969908,2060.5,2060.1,0.0011]
[1773132951931,0.31969908,2060.5,2060.1,0.50431925]
[1773132952156,1.21417998,2060.7,2060.2,0.50321925]
[1773132952511,0.001,2060.7,2060.2,0.50321925]
[1773132953010,0.32044064,2060.7,2060.2,0.50321925]
[1773132955434,1.53366789,2060.7,2060.2,0.50321925]
[1773132955623,0.31919444,2060.6,2059.9,0.0011]
[1773132955941,0.31919444,2060.6,2059.9,1.21474683]
[1773132956127,1.21422725,2060.7,2060.0,0.50321925]
[1773132956128,1.21420112,2060.7,2060.0,0.50321925]
[1773132956512,0.31911227,2060.6,2059.9,0.0011]
[1773132957420,0.3190399,2060.4,2059.9,0.0011]
[1773132958723,0.3190399,2060.4,2060.1,0.0011]
[1773132958957,0.3200399,2060.4,2059.7,0.0011]
[1773132959159,0.3200399,2060.4,2059.7,0.50431925]
[1773132959863,0.31888152,2060.2,2059.7,0.50431925]
[1773132961023,1.21341552,2060.3,2059.8,0.50321925]
[1773132961358,0.31873485,2060.3,2059.8,0.50321925]
[1773132961938,1.21347441,2060.2,2059.8,0.50321925]
[1773132962142,1.53220926,2060.2,2059.7,0.0011]
[1773132962340,0.31865822,2060.1,2059.7,0.0011]
[1773132964261,1.53224637,2060.1,2059.7,0.0011]
[1773132964858,1.21358815,2060.1,2059.7,0.49936347]
[1773132965156,1.21345311,2060.3,2059.7,0.49936347]
[1773132965545,1.21345311,2060.3,2059.8,0.94305918]
[1773132965760,1.21345311,2060.3,2059.9,0.49826347]
[1773132966770,0.31829734,2060.2,2059.7,0.49936347]
[1773132966933,0.31829734,2060.2,2059.7,1.71312838]
[1773132967139,0.31829734,2060.2,2059.8,0.49826347]
[1773132967861,1.21345311,2060.3,2059.8,0.49826347]
[1773132968048,4.85298866,2060.6,2059.9,0.49826347]
[1773132968049,1.21328421,2060.6,2059.9,0.49826347]
[1773132968284,1.21328421,2060.6,2059.7,1.21486491]
[1773132968285,0.31815504,2060.5,2059.7,0.49936347]
[1773132968562,0.31815504,2060.5,2059.7,1.71312603]
[1773132968756,1.21335662,2060.4,2059.8,0.49826347]
[1773132968941,0.31815504,2060.3,2059.8,0.49826347]
[1773132970375,0.31815504,2060.3,2059.9,0.0011]
[1773132970741,0.31915504,2060.3,2059.9,0.0011]
[1773132970942,1.21347441,2060.2,2059.9,0.0011]
[1773132971249,1.53148812,2060.2,2059.9,0.0011]
[1773132972358,0.31787807,2060.1,2059.6,0.49936347]
[1773132972563,0.31787807,2060.1,2059.6,0.0011]
[1773132973865,1.21359223,2060.0,2059.6,0.0011]
[1773132974069,1.21359223,2060.0,2059.6,0.49936347]
[1773132974439,0.31773732,2059.9,2059.6,0.0011]
[1773132975961,0.31773732,2059.9,2059.5,0.0011]
[1773132975962,0.49225292,2059.7,2059.3,0.0011]
[1773132978369,0.49225292,2059.5,2058.8,0.49826347]
[1773132979749,0.49225292,2059.5,2058.6,0.49826347]
[1773132980075,0.49225292,2059.5,2058.4,0.49826347]
[1773132980265,0.49225292,2059.3,2058.4,1.71278759]
[1773132980466,0.49225292,2059.3,2058.4,0.49826347]
[1773132980663,0.49225292,2059.3,2058.6,0.49826347]
[1773132980974,1.70825292,2059.2,2058.6,0.49826347]
[1773132981379,0.49225292,2059.1,2058.4,0.49826347]
[1773132981756,0.49225292,2059.1,2058.3,1.21456255]
[1773132982063,0.49225292,2059.1,2058.3,1.71282602]
[1773132982245,1.70643456,2059.0,2058.4,0.49826347]
[1773132982641,2.43008946,2059.2,2058.4,0.49826347]
[1773132982845,1.70634238,2059.2,2058.4,0.49826347]
[1773132983046,1.70634238,2059.2,2059.0,0.0011]
[1773132983245,1.70634238,2059.2,2058.4,0.49826347]
[1773132983246,0.49225292,2059.1,2058.4,0.49826347]
[1773132984059,0.49225292,2059.1,2058.8,0.0011]
[1773132984386,1.21418164,2059.0,2058.8,0.0011]
[1773132984689,0.49225292,2058.9,2058.0,0.49826347]
[1773132984892,0.49225292,2058.7,2058.0,0.49826347]
[1773132986786,0.49225292,2058.6,2058.0,1.71302621]
[1773132986949,0.49225292,2058.6,2058.1,0.49826347]
[1773132989354,1.21447656,2058.5,2058.1,0.49826347]
[1773132989556,1.70672948,2058.5,2058.1,0.49826347]
[1773132989862,1.70672948,2058.5,2058.0,1.21476274]
[1773132990065,0.49225292,2058.5,2058.0,1.71302621]
[1773132990285,0.49225292,2058.5,2058.0,1.21476274]
[1773132990593,1.21445654,2058.6,2058.1,0.49826347]
[1773132990797,0.49225292,2058.7,2058.2,0.49826347]
[1773132991008,1.70655194,2058.9,2058.4,0.49826347]
[1773132991206,1.217,2059.0,2058.6,0.49826347]
[1773132991402,1.21419497,2059.0,2058.6,0.49826347]
[1773132992063,1.70644789,2059.0,2058.4,1.71279436]
[1773132992259,0.49225292,2059.2,2058.7,0.94475851]
[1773132992499,0.49225292,2059.2,2058.8,0.49826347]
[1773132993083,0.49225292,2059.2,2058.5,0.49826347]
[1773132993468,1.21412267,2059.1,2058.5,1.71573489]
[1773132993670,1.21412267,2059.1,2058.5,1.21442853]
[1773132993985,0.47305486,2059.1,2058.6,0.50130636]
[1773132994197,1.2140882,2059.2,2058.6,0.50130636]
[1773132994802,1.68810678,2059.3,2058.6,0.50130636]
[1773132995159,0.47305486,2059.2,2058.6,0.50130636]
[1773132995373,0.47305486,2059.2,2058.2,1.71595994]
[1773132995374,0.47305486,2059.0,2058.2,1.71595994]
[1773132995597,0.47305486,2059.0,2058.3,0.50130636]
[1773132995977,0.47305486,2059.0,2058.5,0.0011]
[1773132996302,0.47305486,2058.9,2058.5,0.0011]
[1773132997361,0.47305486,2058.9,2058.0,1.71607415]
[1773132997667,0.47305486,2058.7,2058.0,1.71607415]
[1773132998910,0.47305486,2058.7,2058.0,1.21476779]
[1773132999807,0.47305486,2058.7,2057.9,1.71613701]
[1773132999808,0.47305486,2058.5,2057.9,1.71613701]
[1773132999986,0.47305486,2058.5,2058.0,0.50130636]
[1773133001226,1.21406371,2059.2,2058.4,0.50130636]
[1773133001396,0.47305486,2059.1,2058.4,0.50130636]
[1773133001926,1.21418164,2059.0,2058.4,0.50130636]
[1773133002221,0.47305486,2058.9,2058.3,1.2145868]
[1773133002815,0.47305486,2058.9,2058.2,0.50130636]
[1773133003123,0.47305486,2058.9,2057.7,2.36064088]
[1773133003124,0.47305486,2058.9,2057.9,0.50130636]
[1773133004130,1.21429959,2058.8,2058.0,1.21477162]
[1773133004334,0.47305486,2058.7,2058.0,1.71607798]
[1773133004627,1.21428694,2058.9,2058.1,0.50130636]
[1773133006121,1.21428694,2058.9,2058.2,1.21465358]
[1773133006322,0.47305486,2058.8,2058.1,0.50130636]
[1773133007421,0.47305486,2059.1,2058.1,0.50130636]
[1773133007817,0.47305486,2059.1,2058.3,0.50240636]
[1773133008254,0.47405486,2059.0,2058.3,0.50240636]
[1773133008432,1.21424061,2058.9,2058.3,1.71697332]
[1773133008821,1.68824026,2059.0,2058.3,1.71697332]
[1773133009120,0.001,2059.0,2058.4,0.47742144]
[1773133009320,0.001,2059.0,2058.5,0.47742144]
[1773133010755,0.001,2059.0,2058.7,0.47742144]
[1773133012857,0.001,2059.3,2058.8,0.47742144]
[1773133014759,0.48566433,2059.3,2058.6,0.47742144]
[1773133014958,1.69967003,2059.3,2058.7,1.69178001]
[1773133015663,0.48466433,2059.2,2058.7,0.47742144]
[1773133016856,1.69873485,2059.2,2058.7,1.69173427]
[1773133017156,1.21407052,2059.2,2058.8,0.47742144]
[1773133017733,1.21505291,2059.3,2058.8,0.47742144]
[1773133018969,0.48566433,2059.3,2058.8,0.47742144]
[1773133019660,0.48566433,2059.3,2058.5,1.21442388]
[1773133019849,0.48566433,2059.3,2058.4,1.69193427]
[1773133020045,0.48566433,2059.3,2058.5,0.47742144]
[1773133020046,1.216,2059.2,2058.5,0.47742144]
[1773133020373,1.216,2059.2,2058.5,0.47852144]
[1773133020679,0.001,2059.0,2058.5,0.47852144]
[1773133021472,0.001,2059.0,2058.5,1.69297077]
[1773133022872,0.001,2059.0,2058.6,0.47742144]
[1773133023052,1.21503332,2059.3,2058.7,0.47742144]
[1773133023971,0.49682736,2059.3,2058.7,1.69175359]
[1773133024341,0.49682736,2059.3,2058.7,0.47742144]
[1773133024569,0.49682736,2059.3,2058.7,1.69177816]
[1773133025487,0.49682736,2059.3,2058.8,0.49443726]
[1773133027462,1.21406371,2059.2,2058.8,0.49443726]
[1773133028353,1.70989107,2059.2,2058.7,1.21433805]
[1773133028888,0.49582736,2059.1,2058.7,1.21433805]
[1773133029084,0.49582736,2059.1,2058.6,1.70881666]
[1773133029891,0.49582736,2059.1,2058.6,1.70881795]
[1773133029892,1.71000731,2059.1,2058.6,1.70881795]
[1773133030189,1.71000731,2059.1,2058.6,0.49443726]
[1773133030386,1.21417995,2059.1,2058.6,0.49443726]
[1773133030562,0.49582736,2059.0,2058.6,0.49443726]
[1773133031496,0.49582736,2059.0,2058.5,1.21553685]
[1773133031986,1.71005212,2059.0,2058.5,1.21553685]
[1773133032169,1.71005212,2059.0,2058.9,0.0011]
[1773133032379,0.49582736,2058.9,2058.5,0.0011]
[1773133032570,0.49582736,2058.9,2058.6,0.0011]
[1773133033173,1.21422476,2059.0,2058.6,0.49553726]
[1773133033773,1.71005212,2059.0,2058.6,0.49553726]
[1773133035371,1.71005212,2059.0,2058.6,0.0011]
[1773133038399,0.001,2059.1,2058.7,0.49443726]
[1773133038700,1.71095211,2059.1,2058.7,0.49443726]
[1773133038873,0.49582736,2059.0,2058.6,0.0011]
[1773133039267,0.49582736,2059.0,2058.6,0.49553726]
[1773133040820,2.43216264,2059.1,2058.7,0.49443726]
[1773133041175,0.001,2059.1,2058.8,0.49443726]
[1773133042672,0.001,2059.3,2059.0,0.49443726]
[1773133043579,6.07233249,2059.6,2059.3,0.49443726]
[1773133043580,1.217,2059.6,2059.3,0.49443726]
[1773133044089,1.70951773,2059.9,2059.3,0.49443726]
[1773133044476,1.70951773,2059.9,2059.4,1.43871889]
[1773133044911,1.70951773,2059.9,2059.4,2.65262764]
[1773133045211,0.49582736,2059.9,2059.4,2.65262764]
[1773133046108,1.70948326,2059.9,2059.4,2.65262764]
[1773133048020,0.49582736,2059.9,2059.4,2.65262764]
[1773133048220,1.21365575,2059.9,2059.5,0.49443726]
[1773133048422,1.70937662,2060.1,2059.6,1.43871889]
[1773133048590,1.70937662,2060.1,2059.6,0.49443726]
[1773133048992,0.49582736,2060.0,2059.5,0.49443726]
[1773133049524,0.49582736,2060.0,2059.6,1.21382792]
[1773133050418,1.70942284,2060.0,2059.5,1.70827711]
[1773133050721,0.49582736,2059.9,2059.5,1.21383985]
[1773133051122,0.49582736,2059.9,2059.4,1.70835596]
[1773133051625,0.49582736,2059.8,2059.3,4.85590441]
[1773133052015,0.49582736,2059.7,2058.8,1.42566177]
[1773133052211,0.49582736,2059.5,2058.8,1.21537736]
[1773133052927,0.49582736,2059.5,2058.8,0.0011]
[1773133053120,0.49582736,2059.5,2058.8,1.21539821]
[1773133053806,0.53884189,2059.3,2058.8,0.0011]
[1773133055528,0.53884189,2059.3,2058.8,0.2216992]
[1773133055833,2.97173999,2059.5,2059.0,0.2205992]
[1773133056029,1.75784189,2059.5,2059.0,0.2205992]
[1773133056206,2.97175496,2059.5,2059.0,0.2216992]
[1773133056528,0.001,2059.1,2059.0,0.2216992]
[1773133057529,0.001,2059.1,2059.0,0.0011]
[1773133059433,0.53884189,2059.0,2058.6,0.0011]
[1773133060013,0.53884189,2059.0,2058.6,1.21547289]
[1773133060414,0.53884189,2059.0,2058.6,0.0011]
[1773133061614,2.97299795,2059.1,2058.6,0.0011]
[1773133061830,2.43415606,2059.1,2058.6,0.0011]
[1773133062032,0.53884189,2059.0,2058.6,0.0011]
[1773133063023,0.53884189,2059.3,2058.8,2.5725595]
[1773133063427,0.53884189,2059.5,2058.9,0.21142236]
[1773133063628,0.53884189,2059.5,2059.0,1.21418164]
[1773133063940,0.53884189,2059.5,2058.6,4.85866887]
[1773133063941,0.53884189,2059.4,2058.6,0.0011]
[1773133064241,0.53884189,2059.4,2058.7,5.06880291]
[1773133064702,0.53884189,2059.4,2058.7,1.21435857]
[1773133065551,0.53884189,2059.2,2058.6,0.21019289]
[1773133065840,0.53884189,2059.2,2058.6,0.0011]
[1773133067833,0.53884189,2059.0,2058.6,0.0011]
[1773133068029,1.21412267,2059.1,2058.6,0.0011]
[1773133068030,1.75784189,2058.9,2058.6,0.0011]
[1773133068732,0.53884189,2058.8,2058.4,0.0011]
[1773133070638,2.97217689,2058.8,2058.4,0.0011]
[1773133071143,1.75784189,2058.8,2058.4,0.0011]
[1773133071927,2.97214711,2058.8,2058.4,0.0011]
[1773133074044,2.97214848,2058.8,2058.4,0.20243448]
[1773133074543,1.219,2058.8,2058.4,0.20243448]
[1773133074843,2.4333122,2058.8,2058.4,0.20243448]
[1773133076514,2.93053392,2058.8,2058.4,0.20243448]
[1773133076729,2.93053392,2058.8,2058.4,0.0011]
[1773133077131,0.49722172,2058.7,2058.4,0.0011]
[1773133078648,0.49722172,2058.6,2058.0,0.0011]
[1773133079148,0.49722172,2058.4,2058.0,0.0011]
[1773133080345,1.21447656,2058.5,2058.0,0.19536475]
[1773133080346,1.22,2058.3,2058.0,0.19536475]
[1773133080514,1.71722172,2058.5,2058.1,1.13865614]
[1773133081122,1.71722172,2058.5,2058.4,0.0011]
[1773133081516,0.001,2058.6,2058.4,0.0011]
[1773133082819,1.21541883,2058.6,2058.4,0.0011]
[1773133083016,0.49822172,2059.1,2058.5,0.513088]
[1773133085154,0.001,2059.1,2058.6,0.58055883]
[1773133085325,1.22,2059.0,2058.6,0.58055883]
[1773133086854,1.76609081,2059.0,2058.6,0.58055883]
[1773133087154,1.76609081,2059.0,2058.5,1.21445465]
[1773133087350,1.76609081,2059.0,2058.5,0.58055883]
[1773133088259,2.98027455,2059.0,2058.5,0.58055883]
[1773133089262,2.98027455,2059.0,2058.5,1.79499109]
[1773133089450,1.22,2058.9,2058.5,1.79499109]
[1773133089963,1.22,2058.9,2058.6,0.58055883]
[1773133090461,1.22,2059.0,2058.6,0.58055883]
[1773133090959,1.21515022,2059.1,2058.6,0.58055883]
[1773133091276,0.001,2059.1,2058.7,0.58055883]
[1773133091478,0.001,2059.1,2058.8,0.58055883]
[1773133093333,2.43513535,2059.1,2058.8,0.58055883]
[1773133093569,1.221,2059.1,2058.8,0.58055883]
[1773133093761,2.43512752,2059.1,2058.8,0.58055883]
[1773133093968,0.001,2058.9,2058.8,0.58055883]
[1773133094456,0.001,2058.9,2058.7,0.58165883]
[1773133096165,0.54709081,2058.9,2058.7,0.0011]
[1773133098266,1.7613449,2058.9,2058.7,0.0011]
[1773133100070,0.54609081,2058.8,2058.7,0.0011]
[1773133100653,1.21429959,2058.8,2058.5,0.0011]
[1773133100973,0.54609081,2058.7,2058.5,0.0011]
[1773133101268,1.76709081,2058.6,2058.5,0.0011]
[1773133101967,0.54609081,2058.5,2058.2,0.0011]
[1773133102649,0.54609081,2058.4,2058.2,0.0011]